Cogmind - Beta 16.1 @@@ ROGUE MODE // 2026.02.17 @ 20:32:34 Player: Drago Result: Destroyed by 7C-O6G(R) with Subdweller Machine Gun Performance ------------- Evolutions (0) 0 Regions Visited (2) 400 Robots Destroyed (40) 200 Value Destroyed (1023) 1023 Prototype IDs (0) 0 Alien Tech Used (0) 0 Bonus (0) 0 TOTAL SCORE: 1623 Bonus ------- None Cogmind --------- Core Integrity 0/250 Matter 232/300 Energy 95/125 System Corruption 0% Temperature Cool (26) Movement Treading (160) Location -10/Subcaves Parts ------- > --- POWER (1) -------- Light Ion Engine > --- PROPULSION (2) --- Light Treads Light Treads > --- UTILITY (2) ------ Medium Storage Unit > --- WEAPON (2) ------- Subdweller Beam Cannon Subdweller Beam Cannon > --- INVENTORY (10) --- Flight Unit Flight Unit Machine Analyzer Hacking Suite Subdweller Beam Cannon Subdweller Beam Cannon Subdweller Beam Cannon Rocket Launcher Shrapnel Trap Peak State ------------ > --- POWER ------------ Ion Engine > --- PROPULSION ------- Light Treads Wheel > --- UTILITY ---------- Medium Storage Unit Makeshift System Restoration Module > --- WEAPON ----------- Subdweller Beam Cannon Subdweller Beam Cannon > --- INVENTORY -------- Light Ion Engine Light Treads Flight Unit Flight Unit Machine Analyzer Hacking Suite Subdweller Beam Cannon Subdweller Beam Cannon Subdweller Machine Gun Rocket Launcher [Rating: 13] Favorites ----------- Power Ion Engine Engine Ion Engine Propulsion Light Treads Treads Light Treads Wheel Wheel Utility Medium Storage Unit Device Seismic Detector Storage Medium Storage Unit Protection Medium Armor Plating Weapon Subdweller Beam Cannon Energy Gun Small Laser Energy Cannon Subdweller Beam Cannon Ballistic Gun Assault Rifle Launcher Rocket Launcher Special Weapon Mining Laser Build | -11 -10 -10 ------- Run | Yrd Mat Sub Slots Evolved . | . . . Power . | . . . Propulsion . | . . . Utility . | . . . Weapon . | . . . Parts Attached 21 | 8 6 7 Power 4 | 2 1 1 Engine 4 | 2 1 1 Core . | . . . Reactor . | . . . Propulsion 5 | 2 1 2 Treads 4 | 1 1 2 Leg . | . . . Wheel 1 | 1 . . Hover . | . . . Flight . | . . . Utility 5 | 2 2 1 Device 2 | 1 . 1 Storage 2 | 1 1 . Processor . | . . . Hackware . | . . . Protection 1 | . 1 . Artifact . | . . . Weapon 7 | 2 2 3 Energy Gun 1 | 1 . . Energy Cannon 3 | . . 3 Ballistic Gun 1 | 1 . . Ballistic Cannon . | . . . Launcher 1 | . 1 . Special Weapon 1 | . 1 . Impact Weapon . | . . . Slashing Weapon . | . . . Piercing Weapon . | . . . Special Melee Weapon . | . . . Unidentified Prototypes . | . . . Parts Lost 3 | . . 3 Power . | . . . Propulsion 1 | . . 1 Utility 2 | . . 2 Weapon . | . . . Highest Loss Streak 2 | . . 2 To Critical Strikes . | . . . Average Backups 9 | 2 9 9 Power . | . 1 . Propulsion 3 | . 4 3 Utility 1 | . 1 2 Weapon 2 | . 2 3 Tool/Special . | . . . Unused Backups 12 | . 3 9 Power . | . . . Propulsion 4 | . 1 3 Utility 2 | . . 2 Weapon 6 | . 2 4 Tool/Special . | . . . Average Slot Usage (%) 99 | . 100 99 Engine 14 | . 14 14 Treads 14 | . 14 14 Wheel 13 | . 14 13 Device 7 | . 3 11 Storage 14 | . 14 14 Protection 6 | . 10 1 Energy Gun 7 | . 14 . Energy Cannon 12 | . . 26 Ballistic Gun 7 | . 12 . Peak Build Rating 13 | 7 10 13 Average Rating 9 | 5 8 10 On Entrance 5 | . 7 9 Avg Prop Armor Cover (%) 10 | 12 6 12 Naked Turns . | . . . Heaviest Build 38 | 14 27 38 Greatest Support 20 | 10 20 10 Greatest Overweight (x) 3 | 1 2 3 Average Overweight (x) 1 | . 1 2 Largest Inventory Capacity 10 | 8 10 10 Average Capacity 9 | 7 9 10 Most Carried 10 | 4 10 10 Average Carried 9 | 2 9 9 Final Capacity 10 | 8 10 10 Final Carried 10 | 4 10 9 Class Distribution -------------------- 100% | Mutant Dominant Class ---------------- Mutant | -10/Materials Mutant | -10/Subcaves Resources | -11 -10 -10 ----------- Run | Yrd Mat Sub Matter Collected 715 | 307 275 133 Remotely . | . . . Salvage Created 1376 | 113 610 653 Parts 101 | 13 48 40 Haulers Intercepted 2 | . 2 . Recyclers Shooed 1 | . 1 . Parts Field Recycled . | . . . Retrieved Matter . | . . . Parts Self-Destructed . | . . . Prevented . | . . . Parts Restored . | . . . Kills | -11 -10 -10 ------- Run | Yrd Mat Sub Combat Hostiles Destroyed 28 | . 13 15 Guns 10 | . 10 . Cannons 10 | . . 10 AOE 3 | . 3 . Classes Destroyed 9 | 2 6 1 Worker 1 | . 1 . Tunneler 3 | 3 . . Hauler 2 | . 2 . Recycler 2 | 1 1 . Operator 2 | . 2 . Watcher 2 | . 2 . Swarmer 6 | . 6 . Grunt 7 | . 7 . Subdweller 15 | . . 15 Best Kill Streak 4 | 2 3 4 Combat Bots Only 4 | . 3 4 Max Kills in Single Turn 3 | 1 3 1 Gunslinging . | . . . Exploded 3 | . 3 . Melee . | . . . Uniques/NPCs Destroyed . | . . . Combat | -11 -10 -10 -------- Run | Yrd Mat Sub Hostile Shots Fired 85 | . 47 38 Missed 29 | . 17 12 Hits 56 | . 30 26 Projectile 56 | . 30 26 AOE 1 | . . 1 Damage Taken 987 | . 396 591 Core 261 | . 70 191 Absorbed by Shields . | . . . Core Remaining (%) 100 | 100 . . Volleys Fired 115 | 13 65 37 Largest 2 | 2 2 2 Hottest 160 | 60 100 160 Shots Fired 201 | 25 123 53 Gun 143 | 25 118 . Cannon 50 | . . 50 Launcher 4 | . 1 3 Special 4 | . 4 . Kinetic 75 | 13 62 . Thermal 122 | 12 60 50 Explosive 4 | . 1 3 Electromagnetic . | . . . Robot Hit Streak 8 | 3 7 8 Robot Miss Streak 4 | 2 4 3 Penetration Max . | . . . Secondary Targets 2 | . 2 . Max Gunslinging Chain 1 | . 1 . Shots Hit Robots 116 | 13 72 31 Core Hits 51 | 5 35 11 Critical Kills 6 | . 1 5 Critical Parts Destroyed . | . . . Critical Strikes 6 | . 1 5 Meltdown 5 | . . 5 Destroy 1 | . 1 . Melee Attacks . | . . . Impact . | . . . Slashing . | . . . Piercing . | . . . Sneak Attacks . | . . . Combat Hostiles . | . . . Follow-up Attacks . | . . . Damage Inflicted 2247 | 180 1002 1065 Guns 1038 | 180 858 . Cannons 774 | . . 774 Explosions 435 | . 144 291 Melee . | . . . Ramming . | . . . Kinetic 610 | 112 498 . Thermal 1202 | 68 360 774 Explosive 435 | . 144 291 Electromagnetic . | . . . Impact . | . . . Slashing . | . . . Piercing . | . . . Highest Corruption 1 | . 1 1 Average Corruption 1 | . 1 1 Corruption Purged 1 | . . 1 Corruption Blocked . | . . . Effects 19 | . 10 9 Message Errors 3 | . 2 1 Matter Fused 4 | . . 4 Heat Flow Errors 1 | . 1 . Energy Discharges 3 | . 1 2 Data Loss (minor) 3 | . 2 1 Misfires 2 | . 2 . Alerts 2 | . 1 1 Weapon Failures 1 | . 1 . Overload Shots . | . . . Overflow Damage . | . . . Projectiles . | . . . Explosions . | . . . Melee . | . . . Knockbacks . | . . . Impact . | . . . Kinetic . | . . . Secondary . | . . . Self-Inflicted Damage 32 | . 32 . Shots 1 | . 1 . Rammed . | . . . Targets Rammed . | . . . Kicked . | . . . Crushed . | . . . Highest Temperature 186 | . 186 168 Average Temperature 37 | . 32 49 Received Heat Transfer 207 | . 159 48 Siege Activations . | . . . Martial Activations . | . . . Shielding Activations . | . . . Robots Disrupted . | . . . Combat Hostiles . | . . . Robots Corrupted . | . . . Combat Hostiles . | . . . Parts Fried . | . . . Impact Corruptions . | . . . Robots Melted 5 | . . 5 Combat Hostiles 5 | . . 5 Parts Melted 11 | . . 11 Heat Transferred 2011 | 150 825 1036 Parts Sabotaged . | . . . Parts Stolen . | . . . Parts Stripped . | . . . Power Chain Reactions . | . . . Alert | -11 -10 -10 ------- Run | Yrd Mat Sub Maximum Alert Level . | . . . Low Security (%) 100 | 100 100 . Level 1 . | . . . Level 2 . | . . . Level 3 . | . . . Level 4 . | . . . Level 5 . | . . . High Security . | . . . Max Security . | . . . Peak Influence 149 | 5 149 . Initial . | . . . Average 45 | 2 49 . Influence Increases 428 | 20 408 . Destroy 0b10 Robot/C 260 | . 260 . Destroy 0b10 Robot/NC 60 | 20 40 . Destroy Leader 58 | . 58 . Successful Hack 10 | . 10 . Disable Machine 15 | . 15 . Destroy Structure 10 | . 10 . Lose Combat Pursuer 15 | . 15 . Influence Decreases 428 | 20 408 . Time Decay 428 | 20 408 . Squads Dispatched 4 | . 4 . Investigation 3 | . 3 . Extermination . | . . . Reinforcement 1 | . 1 . Assault . | . . . Garrison . | . . . Intercept . | . . . Searches Triggered . | . . . Construction Impeded . | . . . Haulers Reinforced . | . . . Active Scanning Responses . | . . . Cargo Convoy Interrupts . | . . . Stealth | -11 -10 -10 --------- Run | Yrd Mat Sub Distress Signals 4 | . 4 . Communications Jammed . | . . . Distress Signals . | . . . Times Spotted 43 | . 26 17 Peak Tracking Total 5 | . 5 3 Tactical Retreats 1 | . 1 . Traps | -11 -10 -10 ------- Run | Yrd Mat Sub Traps Triggered 3 | . 3 . Indirectly . | . . . Trap Hack Attempts . | . . . Triggered . | . . . Disarmed . | . . . Reprogrammed . | . . . Reused . | . . . Traps Extracted . | . . . Installed . | . . . Triggered . | . . . Most Traps Carried 1 | . . 1 Machines | -11 -10 -10 ---------- Run | Yrd Mat Sub Machines Disabled 1 | . 1 . Max in Single Turn 1 | . 1 . Machines Repaired . | . . . Machines Dismantled . | . . . Machines Sabotaged . | . . . Overloaded Fab Kills . | . . . Hacking | -11 -10 -10 --------- Run | Yrd Mat Sub Machines Accessed 7 | . 7 . Terminals 6 | . 6 . Fabricators . | . . . Repair Stations . | . . . Recycling Units 1 | . 1 . Scanalyzers . | . . . Garrison Access . | . . . Total Hacks 25 | . 25 . Successful 11 | . 11 . Failed 14 | . 14 . Catastrophic 2 | . 2 . Database Lockouts . | . . . Manual 21 | . 21 . Terminals 23 | . 23 . Fabricators . | . . . Repair Stations . | . . . Recycling Units 2 | . 2 . Scanalyzers . | . . . Garrison Access . | . . . Terminal Hacks 2 | . 2 . Robot Analysis 1 | . 1 . Locate Traps 1 | . 1 . Fabricator Hacks . | . . . Repair Station Hacks . | . . . Recycling Unit Hacks 1 | . 1 . Retrieve Components 1 | . 1 . Scanalyzer . | . . . Garrison Access Hacks . | . . . Unauthorized Hacks 8 | . 8 . Terminals 8 | . 8 . Botnet 3 | . 3 . Operators 1 | . 1 . Skim 4 | . 4 . Fabricators . | . . . Repair Stations . | . . . Recycling Units . | . . . Scanalyzers . | . . . Garrison Access . | . . . Data Cores Recovered . | . . . Used . | . . . Hacking Detections 6 | . 6 . Full Trace Events 1 | . 1 . Feedback Events 1 | . 1 . Corruption 1 | . 1 . Feedback Blocked . | . . . Robot Schematics Acquired . | . . . Robots Built . | . . . Authchips . | . . . Time . | . . . Total Robot Build Rating . | . . . Part Schematics Acquired . | . . . Parts Built . | . . . Authchips . | . . . Time . | . . . Total Part Build Rating . | . . . Part Studies Acquired . | . . . Parts Repaired . | . . . Time . | . . . Parts Recycled . | . . . Recycled Matter . | . . . Retrieved Matter . | . . . Retrieved Components 9 | . 9 . Parts Scanalyzed . | . . . Part Schematics Acquired . | . . . Parts Damaged . | . . . Bothacking | -11 -10 -10 ------------ Run | Yrd Mat Sub Used RIF Installer . | . . . Robots Hacked . | . . . Non-combat . | . . . Combat . | . . . Robot Hacks Applied . | . . . Relay Couplers Released . | . . . Fabnet Peak Effective % . | . . . Robots Rewired . | . . . Allies Hacked . | . . . Hacks Repelled . | . . . Allies | -11 -10 -10 -------- Run | Yrd Mat Sub Total Allies . | . . . Largest Group . | . . . Highest-Rated Group . | . . . Highest-Rated Ally . | . . . Total Orders . | . . . Ally Attacks . | . . . Total Damage . | . . . Kills . | . . . Allies Corrupted . | . . . Allies Melted . | . . . Intel | -11 -10 -10 ------- Run | Yrd Mat Sub Active Infowar (turns) 1297 | 20 318 959 Seismic 1297 | 20 318 959 Robot Analysis Total 1 | . 1 . Derelict Logs Recovered 1 | . . 1 Drone Launches . | . . . Drone Recoveries . | . . . Exploration | -11 -10 -10 ------------- Run | Yrd Mat Sub Turns Passed 2635 | 132 1375 1128 Spaces Moved 1498 | 85 659 754 Core 2 | 2 . . Treads 324 | . 324 . Legs . | . . . Wheels 1172 | 83 335 754 Hover . | . . . Flight . | . . . Fastest Speed 50 | 50 95 110 Average Speed 138 | 91 168 118 Slowest Speed 240 | 95 240 125 Overloaded Moves . | . . . Propulsion Burnouts . | . . . Robots Hopped . | . . . Potential Cave-ins . | . . . Cave-ins Triggered . | . . . Exploration Rate (%) 49 | 3 97 48 Regions Visited 2 Branch Regions 1 Pre-discovered Areas 1 | . . 1 Known Exits Taken . | . . . Unknown Exits Taken 2 | 1 1 . Scrap Searched 14 | . . 14 Spaces Dug 3 | . 3 . Terrain Destroyed 17 | . 9 8 Melee . | . . . Projectile 6 | . 3 3 AOE 11 | . 6 5 Terrain Rammed . | . . . Walls Destroyed . | . . . Machines Disabled . | . . . Actions | -11 -10 -10 --------- Run | Yrd Mat Sub Total 1842 | 110 793 939 Wait 161 | . 45 116 Move 1496 | 84 658 754 Hop . | . . . Pick Up 22 | 4 9 9 Fast Attach 13 | 8 1 4 Attach 4 | . . 4 Detach . | . . . Swap 12 | . 9 3 Drop 19 | 1 6 12 Fire 115 | 13 65 37 Melee . | . . . Ram . | . . . Kick . | . . . Crush . | . . . Escape Stasis . | . . . Rewire . | . . . Trap . | . . . Miscellaneous . | . . . Route ------- -11/Scrapyard -10/Materials (discovered 6 exits: [*Mat x3] / [*Min x2] / [*Sub]) -10/Subcaves History --------- Turn | Location | Event 5 | -11/Scrapyard | Discovered new exit (range 15) 133 | -11/Scrapyard | Entered Materials 313 | -10/Materials | Discovered new exit (range 9) 323 | -10/Materials | Build established: Mutant 367 | -10/Materials | Discovered new exit (range 3) 436 | -10/Materials | Discovered new exit (range 7) 888 | -10/Materials | Discovered new exit (range 11) 1214 | -10/Materials | Discovered new exit (range 6) 1287 | -10/Materials | Discovered new exit (range 13) 1508 | -10/Materials | Entered Subcaves 1509 | -10/Subcaves | Approached by a straggling Scientist 1517 | -10/Subcaves | Shifting Twisted Machinery released Sub. Beam Cannon 1520 | -10/Subcaves | Shifting Twisted Machinery released Sub. Beam Cannon 1647 | -10/Subcaves | Core integrity fell below 50% 1797 | -10/Subcaves | Learned location of Zion (-7) 2614 | -10/Subcaves | A Subdweller sparked back to life 2614 | -10/Subcaves | A Subdweller sparked back to life 2614 | -10/Subcaves | A Subdweller sparked back to life 2625 | -10/Subcaves | Core integrity fell below 20% 2636 | -10/Subcaves | Destroyed by 7C-O6G(R) with Subdweller Machine Gun Last Messages --------------- 02390_ Disposable Heat Sink melted. 02393_ ZH-QJU(R) destroyed. 02407_ Subatomizers dissect the Sub. Optics. 02435_ Subatomizers dissect the Sub. Monowheel. 02614_ 23-IGE(R) creaks and sparks as it begins to move. 02614_ 93-YG4(R) creaks and sparks as it begins to move. 02614_ 7C-O6G(R) creaks and sparks as it begins to move. 02620_ Sub. Beam Cannon shoots sparks and powers down. 02620_ Wheel destroyed. 02622_ 23-IGE(R) affixes Scrap Shield Fragment to Scrap Shield. 02629_ Seismic Detector destroyed. 02634_ Sub. Beam Cannon shoots sparks and powers down. 02634_ 93-YG4(R) destroyed. Map ----- +----------------------------------------------------+ | ?????????????????????????????????????????????????? | | ?????????????????????????????????????????????????? | | ?????????????????????????????????????????????????? | | ?????????????????????????????????????????????????? | | ?????????????????????????????????????????????????? | | ?????????????????????????????????????????????????? | | ?????????????????????????????????????????????????? | | ?????????????????????????????????????????????????? | | ?????????????????????????????????????????????????? | | ?????????????????????????????????????????????????? | | ??????????????????????? ?????????????????????? | | ?????????????????????? ???????????????????? | | ?????????????????????? R ?????????????????? | | ??????????????????????R ??????????????????? | | ?????????????????????? ??????????????????? | | ??????????????????????? #??????????????????? | | ??????????????????????? !* #??????????????????? | | ??????????????????????? =%& #??????????????????? | | ??????????????????????? & #??????????????????? | | ???????????????????????? ???????????????????? | | ???????????????????????? #???????????????????? | | ???####???????????####?? #???????????????????? | | ???# #?????????## ##? ????????????????????? | | ???# ##???##### ### #?????????????????????? | | ???# ##### ## ##?????????????????????? | | ?????# # # # @ #?????????????????????? | | ?????# ### #?????????????????????? | | ?###?# #?## ##?????????????????????? | | ?# ### ## #??# #?????????????????????? | | ?# ## ####??# # # #?????????????????????? | | #?# ] #### #####?????????????????????? | | #?## # ##?????????????????????????? | | ##?# [ ##??????????????????????????? | | #?# ##???????????????????????????? | | #?# # ## ##????????????????????????????? | | ### ######?????????????????????????????? | | ### #??????????????????????????????????? | | ## ## #????????????????????????????????? | | #? ??????????????????????????????? | | ##? ????????????????????????????? | | ######?? ????????????????????????????? | | ##???????? ## ????????????????????????????? | | #????????? #??????????????????????????????? | | #???????????###??????????????????????????????? | | # #????????????????????????????????????????????? | | # #????????????????????????????????????????????? | | # #???????????????????????????????????????????? | | # ##???????????????????????????????????????????? | | # #????????????????????????????????????????????? | | ????????????????????????????????????????????? | +----------------------------------------------------+ Best States ------------- Heat Dissipation 25 Energy Generation 10 Energy Capacity 250 Matter Stores 300 Matter Capacity 300 Sight Range 16 Terrain Scan Density 10 Armor Coverage 225 Evasion (%) 44 Recoil Reduction 2 Item Schematics ----------------- None Robot Schematics ------------------ None Fabricated ------------ Nothing Repaired ---------- Nothing Studied --------- None Alien Tech Used ----------------- None Achievements -------------- None Challenges ------------ None Game ------ Seed MultireflexMetafiberMask Manual? 0 Play Time 00:20:37 Cumulative 160.8 hours Start 2026.02.17 @ 20:13:52 End 2026.02.17 @ 20:32:34 Sessions 1 Manual Loads 0 Difficulty Rogue Special Mode None Game No. 127 Rogue 127 Adventurer 0 Explorer 0 Win Type - Total 2 Types 2/0/0/0/0/0/0/0/0/0 Lore% 67 Gallery% 63 Achievement% 47 Wizard Run 0 Options --------- Layout 1 ASCII 0 Keyboard 0 Movement Numpad Keybinds 0 Fullscreen 1 Font 18/SmallcapsGlow Map View 50x40 Zoom Use 0% Tactical HUD 1 Map Filters NONE Filters NONE Steam 1 RUN: e8625615-3add-4aea-8d5a-df4c2a5db5b7